[Event "*** Titled Tuesday Blitz"]
[Site "Chess.com"]
[Date "2021.04.06"]
[Round "11"]
[White "Valeron87"]
[Black "Tekushka"]
[Result "1-0"]
[WhiteElo "2302"]
[BlackElo "2381"]
[TimeControl "180+1"]
[EndTime "12:06:40 PDT"]
[Termination "Valeron87 won on time"]

1. e4 {[%clk 0:03:00.9]} 1... c5 {[%clk 0:02:58.4]} 2. Nf3 {[%clk 0:02:59.8]}
2... d6 {[%clk 0:02:58.6]} 3. d4 {[%clk 0:02:59.7]} 3... cxd4 {[%clk 0:02:58.9]}
4. Qxd4 {[%clk 0:03:00.1]} 4... Nc6 {[%clk 0:02:57.6]} 5. Bb5 {[%clk 0:02:58.9]}
5... a6 {[%clk 0:02:54.3]} 6. Bxc6+ {[%clk 0:02:58.6]} 6... bxc6 {[%clk
0:02:54.6]} 7. O-O {[%clk 0:02:50.4]} 7... e5 {[%clk 0:02:52.9]} 8. Qd3 {[%clk
0:02:50.5]} 8... h6 {[%clk 0:02:50.9]} 9. Nbd2 {[%clk 0:02:49.2]} 9... Be6
{[%clk 0:02:44.2]} 10. Nc4 {[%clk 0:02:46.7]} 10... Nf6 {[%clk 0:02:40.9]} 11.
Rd1 {[%clk 0:02:41.1]} 11... Bxc4 {[%clk 0:02:32.1]} 12. Qxc4 {[%clk 0:02:40.1]}
12... Qc7 {[%clk 0:02:31.6]} 13. b3 {[%clk 0:02:37.2]} 13... Be7 {[%clk
0:02:30.8]} 14. a4 {[%clk 0:02:28.7]} 14... O-O {[%clk 0:02:29.8]} 15. Ba3
{[%clk 0:02:27.6]} 15... Rfd8 {[%clk 0:02:20.8]} 16. Qe2 {[%clk 0:02:17.4]}
16... Re8 {[%clk 0:02:04.4]} 17. Rd2 {[%clk 0:02:14]} 17... d5 {[%clk 0:02:04]}
18. Bxe7 {[%clk 0:01:45.2]} 18... Rxe7 {[%clk 0:02:03.1]} 19. exd5 {[%clk
0:01:45]} 19... cxd5 {[%clk 0:02:03]} 20. Re1 {[%clk 0:01:41.4]} 20... Ne4
{[%clk 0:00:42.7]} 21. Rd3 {[%clk 0:01:24.5]} 21... Rc8 {[%clk 0:00:42.2]} 22.
c4 {[%clk 0:01:21.1]} 22... dxc4 {[%clk 0:00:41.5]} 23. Re3 {[%clk 0:01:20.8]}
23... Nc5 {[%clk 0:00:29.3]} 24. Qxc4 {[%clk 0:01:08.8]} 24... e4 {[%clk
0:00:22.4]} 25. Nd2 {[%clk 0:01:02.5]} 25... Nd3 {[%clk 0:00:19.2]} 26. Rxe4
{[%clk 0:00:55.9]} 26... Nxe1 {[%clk 0:00:13.1]} 27. Rxe7 {[%clk 0:00:55.5]}
27... Qxe7 {[%clk 0:00:10.3]} 28. Qxc8+ {[%clk 0:00:54.8]} 28... Kh7 {[%clk
0:00:11.2]} 29. Qxa6 {[%clk 0:00:51.4]} 29... Qb4 {[%clk 0:00:10]} 30. Qe2
{[%clk 0:00:50]} 30... Nc2 {[%clk 0:00:09]} 31. Qd3+ {[%clk 0:00:49.4]} 1-0

[Event "*** Titled Tuesday Blitz"]
[Site "Chess.com"]
[Date "2021.04.06"]
[Round "11"]
[White "NateSolon"]
[Black "Kobalia"]
[Result "0-1"]
[WhiteElo "2625"]
[BlackElo "2771"]
[TimeControl "180+1"]
[EndTime "12:06:41 PDT"]
[Termination "Kobalia won by resignation"]

1. d4 {[%clk 0:03:00.9]} 1... Nf6 {[%clk 0:02:59.3]} 2. c4 {[%clk 0:03:00.4]}
2... g6 {[%clk 0:02:59.5]} 3. g3 {[%clk 0:03:00.4]} 3... Bg7 {[%clk 0:02:59.2]}
4. Bg2 {[%clk 0:03:00.9]} 4... O-O {[%clk 0:02:59.7]} 5. Nc3 {[%clk 0:03:01.5]}
5... d6 {[%clk 0:03:00]} 6. Nf3 {[%clk 0:03:01.9]} 6... Nc6 {[%clk 0:03:00.2]}
7. O-O {[%clk 0:03:02.1]} 7... a6 {[%clk 0:02:59.9]} 8. d5 {[%clk 0:02:59.9]}
8... Nb8 {[%clk 0:02:59.1]} 9. h3 {[%clk 0:02:55.3]} 9... Nbd7 {[%clk
0:02:58.1]} 10. e4 {[%clk 0:02:54.7]} 10... b5 {[%clk 0:02:56.9]} 11. Nd4 {[%clk
0:02:48.9]} 11... bxc4 {[%clk 0:02:52.6]} 12. Nc6 {[%clk 0:02:24.6]} 12... Qe8
{[%clk 0:02:52.1]} 13. Qe2 {[%clk 0:02:24.4]} 13... Nb6 {[%clk 0:02:50.7]} 14.
e5 {[%clk 0:02:18.2]} 14... Nfd7 {[%clk 0:02:42.8]} 15. e6 {[%clk 0:02:10.3]}
15... Nc5 {[%clk 0:02:38.6]} 16. exf7+ {[%clk 0:02:04.2]} 16... Rxf7 {[%clk
0:02:38.2]} 17. Bg5 {[%clk 0:02:02.4]} 17... Bd7 {[%clk 0:02:24.4]} 18. Nxe7+
{[%clk 0:01:56.6]} 18... Kh8 {[%clk 0:02:23.9]} 19. Rad1 {[%clk 0:01:27.6]}
19... Nd3 {[%clk 0:02:05.4]} 20. h4 {[%clk 0:00:53.9]} 20... Ne5 {[%clk
0:01:32.6]} 21. Nc6 {[%clk 0:00:50.3]} 21... Nxc6 {[%clk 0:01:32.1]} 22. Qxe8+
{[%clk 0:00:50.1]} 22... Rxe8 {[%clk 0:01:30.4]} 23. dxc6 {[%clk 0:00:51]} 23...
Bf5 {[%clk 0:01:25.3]} 24. Nd5 {[%clk 0:00:49.6]} 24... Na4 {[%clk 0:01:16.5]}
25. b3 {[%clk 0:00:46.3]} 25... cxb3 {[%clk 0:00:54]} 26. axb3 {[%clk
0:00:47.2]} 26... Nc3 {[%clk 0:00:54.4]} 27. Nxc3 {[%clk 0:00:40.7]} 27... Bxc3
{[%clk 0:00:53.4]} 28. Bd5 {[%clk 0:00:39.8]} 28... Rff8 {[%clk 0:00:52.8]} 29.
Bh6 {[%clk 0:00:29.4]} 29... Bg7 {[%clk 0:00:52.2]} 30. Bxg7+ {[%clk 0:00:28.4]}
30... Kxg7 {[%clk 0:00:53.1]} 31. Ra1 {[%clk 0:00:28.9]} 31... Re5 {[%clk
0:00:52]} 32. Bg2 {[%clk 0:00:24.5]} 32... a5 {[%clk 0:00:50.7]} 33. Ra3 {[%clk
0:00:20.9]} 33... Rb8 {[%clk 0:00:49.2]} 34. Rfa1 {[%clk 0:00:20.8]} 34... Rbb5
{[%clk 0:00:48.9]} 35. Bf3 {[%clk 0:00:18.4]} 35... Bc2 {[%clk 0:00:48]} 36. Bd1
{[%clk 0:00:16.7]} 36... Re1+ {[%clk 0:00:47.1]} 37. Kg2 {[%clk 0:00:16.6]}
37... Rxd1 {[%clk 0:00:47.3]} 0-1

[Event "*** Titled Tuesday Blitz"]
[Site "Chess.com"]
[Date "2021.04.06"]
[Round "11"]
[White "lucachess49"]
[Black "Chigorinetz"]
[Result "0-1"]
[WhiteElo "2418"]
[BlackElo "2530"]
[TimeControl "180+1"]
[EndTime "12:06:41 PDT"]
[Termination "Chigorinetz won by resignation"]

1. d4 {[%clk 0:02:58.1]} 1... d5 {[%clk 0:02:59.4]} 2. c4 {[%clk 0:02:50.8]}
2... Nc6 {[%clk 0:02:58.8]} 3. cxd5 {[%clk 0:02:36.3]} 3... Qxd5 {[%clk
0:02:58.3]} 4. Nf3 {[%clk 0:02:37]} 4... e5 {[%clk 0:02:58.3]} 5. Nc3 {[%clk
0:02:37.2]} 5... Bb4 {[%clk 0:02:58.3]} 6. dxe5 {[%clk 0:02:31.3]} 6... Qxd1+
{[%clk 0:02:56.6]} 7. Kxd1 {[%clk 0:02:32.2]} 7... Bg4 {[%clk 0:02:56.1]} 8. a3
{[%clk 0:02:20.7]} 8... O-O-O+ {[%clk 0:02:53.6]} 9. Kc2 {[%clk 0:02:18.7]} 9...
Bc5 {[%clk 0:02:46.6]} 10. e3 {[%clk 0:02:14.8]} 10... Nge7 {[%clk 0:02:45.7]}
11. b4 {[%clk 0:02:08.1]} 11... Bb6 {[%clk 0:02:45.1]} 12. Bb2 {[%clk 0:02:08]}
12... Ng6 {[%clk 0:02:39.7]} 13. h3 {[%clk 0:02:07.9]} 13... Bxf3 {[%clk
0:02:39.2]} 14. gxf3 {[%clk 0:02:08.8]} 14... Ncxe5 {[%clk 0:02:36.5]} 15. Be2
{[%clk 0:02:09.1]} 15... c6 {[%clk 0:02:26.7]} 16. f4 {[%clk 0:02:04.9]} 16...
Nd7 {[%clk 0:02:26]} 17. h4 {[%clk 0:02:02.4]} 17... Nf6 {[%clk 0:02:10.2]} 18.
h5 {[%clk 0:01:48.2]} 18... Ne7 {[%clk 0:02:10]} 19. h6 {[%clk 0:01:48.6]} 19...
Rhg8 {[%clk 0:02:04.5]} 20. Rag1 {[%clk 0:01:06.1]} 20... g6 {[%clk 0:02:01.5]}
21. Na4 {[%clk 0:01:04.1]} 21... Ne4 {[%clk 0:01:58.3]} 22. Nxb6+ {[%clk
0:01:02.4]} 22... axb6 {[%clk 0:01:57.8]} 23. Rd1 {[%clk 0:00:42]} 23... Rxd1
{[%clk 0:01:44.4]} 24. Rxd1 {[%clk 0:00:42.9]} 24... Nxf2 {[%clk 0:01:42.8]} 25.
Rf1 {[%clk 0:00:33.3]} 25... Ne4 {[%clk 0:01:40.4]} 26. Bf3 {[%clk 0:00:32.3]}
26... Nd5 {[%clk 0:01:35.8]} 27. Re1 {[%clk 0:00:19]} 27... Re8 {[%clk 0:01:32]}
28. Be5 {[%clk 0:00:17.2]} 28... f5 {[%clk 0:01:24.8]} 29. Bxe4 {[%clk
0:00:17.3]} 29... fxe4 {[%clk 0:01:24.7]} 30. Kd2 {[%clk 0:00:16.9]} 30... Ne7
{[%clk 0:01:22.2]} 31. Rc1 {[%clk 0:00:13.5]} 31... b5 {[%clk 0:01:18.6]} 32.
Ke2 {[%clk 0:00:10.7]} 32... Nf5 {[%clk 0:01:16.8]} 33. Rd1 {[%clk 0:00:10.4]}
33... Rd8 {[%clk 0:01:14]} 34. Rg1 {[%clk 0:00:05.3]} 34... Rd3 {[%clk
0:01:11.9]} 35. Bd4 {[%clk 0:00:05.3]} 35... Rxa3 {[%clk 0:01:08]} 36. Rg5
{[%clk 0:00:02.6]} 36... Ra2+ {[%clk 0:01:05.4]} 37. Ke1 {[%clk 0:00:02.3]}
37... Kd7 {[%clk 0:01:05.5]} 38. Rg1 {[%clk 0:00:01.9]} 38... Ke6 {[%clk
0:01:04.4]} 39. Kd1 {[%clk 0:00:02]} 0-1

[Event "*** Titled Tuesday Blitz"]
[Site "Chess.com"]
[Date "2021.04.06"]
[Round "11"]
[White "MaxLeto"]
[Black "chesslh19"]
[Result "1-0"]
[WhiteElo "2342"]
[BlackElo "2235"]
[TimeControl "180+1"]
[EndTime "12:06:49 PDT"]
[Termination "MaxLeto won by resignation"]

1. g4 {[%clk 0:03:00.9]} 1... e5 {[%clk 0:02:45.9]} 2. Bg2 {[%clk 0:03:01]} 2...
d5 {[%clk 0:02:32.9]} 3. d4 {[%clk 0:02:57]} 3... exd4 {[%clk 0:02:03.6]} 4.
Qxd4 {[%clk 0:02:57.9]} 4... c6 {[%clk 0:01:58.8]} 5. Nc3 {[%clk 0:02:46.4]}
5... Nd7 {[%clk 0:01:55.7]} 6. Nf3 {[%clk 0:02:39.3]} 6... Qb6 {[%clk
0:01:43.5]} 7. O-O {[%clk 0:02:22.1]} 7... Qxd4 {[%clk 0:01:41.7]} 8. Nxd4
{[%clk 0:02:22.9]} 8... Bd6 {[%clk 0:01:34.6]} 9. Nf5 {[%clk 0:02:16.6]} 9...
Bf8 {[%clk 0:01:28.5]} 10. Bf4 {[%clk 0:02:09.2]} 10... Ndf6 {[%clk 0:01:22.2]}
11. e4 {[%clk 0:01:39.8]} 11... Nxg4 {[%clk 0:01:04.2]} 12. Nd6+ {[%clk
0:01:23]} 12... Bxd6 {[%clk 0:01:01.1]} 13. Bxd6 {[%clk 0:01:23.9]} 13... Be6
{[%clk 0:00:42.3]} 14. exd5 {[%clk 0:01:21.7]} 14... cxd5 {[%clk 0:00:42]} 15.
Rad1 {[%clk 0:00:59.8]} 15... O-O-O {[%clk 0:00:38.6]} 16. Bg3 {[%clk
0:00:50.4]} 16... N4f6 {[%clk 0:00:36.9]} 17. Nb5 {[%clk 0:00:44.6]} 17... Ne7
{[%clk 0:00:10.2]} 18. Nxa7+ {[%clk 0:00:26.1]} 18... Kd7 {[%clk 0:00:10.2]} 19.
c4 {[%clk 0:00:23.2]} 19... Ke8 {[%clk 0:00:06.5]} 20. Nb5 {[%clk 0:00:19]}
20... dxc4 {[%clk 0:00:03.9]} 21. Nc7+ {[%clk 0:00:18.3]} 21... Kf8 {[%clk
0:00:04.2]} 22. Rxd8+ {[%clk 0:00:18.6]} 1-0

[Event "*** Titled Tuesday Blitz"]
[Site "Chess.com"]
[Date "2021.04.06"]
[Round "11"]
[White "Aygehovit1992"]
[Black "Gerodot71"]
[Result "1/2-1/2"]
[WhiteElo "2649"]
[BlackElo "2553"]
[TimeControl "180+1"]
[EndTime "12:06:50 PDT"]
[Termination "Game drawn by repetition"]

1. b3 {[%clk 0:03:00.9]} 1... d5 {[%clk 0:02:59.6]} 2. Bb2 {[%clk 0:03:01.4]}
2... Bg4 {[%clk 0:03:00.1]} 3. h3 {[%clk 0:03:01.1]} 3... Bh5 {[%clk 0:03:00.2]}
4. g4 {[%clk 0:03:00.6]} 4... Bg6 {[%clk 0:03:00.6]} 5. Bg2 {[%clk 0:03:00.3]}
5... e6 {[%clk 0:02:59.7]} 6. e3 {[%clk 0:02:57.9]} 6... Nd7 {[%clk 0:03:00]} 7.
Ne2 {[%clk 0:02:58.1]} 7... Bd6 {[%clk 0:02:57.7]} 8. d3 {[%clk 0:02:58.3]} 8...
c6 {[%clk 0:02:57.6]} 9. Nd2 {[%clk 0:02:58.7]} 9... Ngf6 {[%clk 0:02:55.9]} 10.
Nf4 {[%clk 0:02:57.9]} 10... Bxf4 {[%clk 0:02:49.1]} 11. exf4 {[%clk 0:02:58.8]}
11... Qc7 {[%clk 0:02:49.3]} 12. Qf3 {[%clk 0:02:56.8]} 12... O-O-O {[%clk
0:02:43.5]} 13. O-O-O {[%clk 0:02:56.6]} 13... h5 {[%clk 0:02:41]} 14. Kb1
{[%clk 0:02:55.3]} 14... a5 {[%clk 0:02:32.5]} 15. g5 {[%clk 0:02:46.7]} 15...
Ne8 {[%clk 0:02:30.9]} 16. Qe3 {[%clk 0:02:44.5]} 16... Nd6 {[%clk 0:02:25.3]}
17. Nf3 {[%clk 0:02:38.1]} 17... Nf5 {[%clk 0:02:24.7]} 18. Qd2 {[%clk
0:02:37.9]} 18... b6 {[%clk 0:02:19.4]} 19. Ne5 {[%clk 0:02:35.9]} 19... Nxe5
{[%clk 0:02:19.7]} 20. fxe5 {[%clk 0:02:35.4]} 20... Kb7 {[%clk 0:02:15.1]} 21.
h4 {[%clk 0:02:35.2]} 21... Ra8 {[%clk 0:02:14]} 22. a4 {[%clk 0:02:32.7]} 22...
Rad8 {[%clk 0:02:09.8]} 23. f4 {[%clk 0:02:32.6]} 23... Rd7 {[%clk 0:02:08.1]}
24. Qf2 {[%clk 0:02:15.5]} 24... Kb8 {[%clk 0:02:06.7]} 25. Rhe1 {[%clk
0:02:15.5]} 25... Rc8 {[%clk 0:02:05.7]} 26. Kc1 {[%clk 0:02:00.2]} 26... Qb7
{[%clk 0:01:57.6]} 27. Kd2 {[%clk 0:01:59.9]} 27... Qc7 {[%clk 0:01:41.5]} 28.
Ke2 {[%clk 0:01:59.4]} 28... c5 {[%clk 0:01:38.6]} 29. Kf1 {[%clk 0:01:57.5]}
29... Ka7 {[%clk 0:01:37.4]} 30. Kg1 {[%clk 0:01:57.2]} 30... d4 {[%clk
0:01:33]} 31. Bc1 {[%clk 0:01:55.3]} 31... Ne7 {[%clk 0:01:26.3]} 32. Bd2 {[%clk
0:01:52.2]} 32... Nd5 {[%clk 0:01:22.2]} 33. Rf1 {[%clk 0:01:47.1]} 33... Bf5
{[%clk 0:01:20.8]} 34. Be4 {[%clk 0:01:44.3]} 34... Ne7 {[%clk 0:01:16.7]} 35.
Kh2 {[%clk 0:01:38.7]} 35... Rcd8 {[%clk 0:01:09.4]} 36. Bh1 {[%clk 0:01:38.3]}
36... Nd5 {[%clk 0:01:03]} 37. Rde1 {[%clk 0:01:38.3]} 37... Nb4 {[%clk
0:01:01.5]} 38. Bc1 {[%clk 0:01:28.3]} 38... Nd5 {[%clk 0:01:00.4]} 39. Bf3
{[%clk 0:01:22.7]} 39... g6 {[%clk 0:00:59.6]} 40. Bg2 {[%clk 0:01:22.5]} 40...
Nc3 {[%clk 0:00:58.8]} 41. Kg3 {[%clk 0:01:22]} 41... Nd5 {[%clk 0:00:58.6]} 42.
Bh1 {[%clk 0:01:21.9]} 42... Nc3 {[%clk 0:00:58.6]} 43. Bd2 {[%clk 0:01:21.7]}
43... Nd5 {[%clk 0:00:58.8]} 44. Qg2 {[%clk 0:01:21.5]} 44... Nb4 {[%clk
0:00:57.7]} 45. Bxb4 {[%clk 0:01:20.2]} 45... cxb4 {[%clk 0:00:56.8]} 46. Re2
{[%clk 0:01:18.3]} 46... Qc5 {[%clk 0:00:56]} 47. Rff2 {[%clk 0:01:17.9]} 47...
Rc7 {[%clk 0:00:56.1]} 48. Rd2 {[%clk 0:01:18]} 48... Qc3 {[%clk 0:00:55.2]} 49.
Qf1 {[%clk 0:01:15]} 49... Rdc8 {[%clk 0:00:51.3]} 50. Qg2 {[%clk 0:01:13.2]}
50... Rd8 {[%clk 0:00:47.4]} 51. Qf3 {[%clk 0:01:12.2]} 51... Bg4 {[%clk
0:00:45.2]} 52. Qe4 {[%clk 0:01:10.8]} 52... Bf5 {[%clk 0:00:45.5]} 53. Qg2
{[%clk 0:01:10.9]} 53... Rdc8 {[%clk 0:00:45.2]} 54. Qf3 {[%clk 0:01:05.3]}
54... Bg4 {[%clk 0:00:44.2]} 55. Qg2 {[%clk 0:01:04.1]} 55... Bf5 {[%clk
0:00:42.3]} 56. Qf3 {[%clk 0:01:04.2]} 56... Bg4 {[%clk 0:00:42.3]} 57. Qg2
{[%clk 0:01:04]} 57... Bf5 {[%clk 0:00:42.6]} 1/2-1/2

[Event "*** Titled Tuesday Blitz"]
[Site "Chess.com"]
[Date "2021.04.06"]
[Round "11"]
[White "TheCount"]
[Black "anon102030"]
[Result "0-1"]
[WhiteElo "2616"]
[BlackElo "2747"]
[TimeControl "180+1"]
[EndTime "12:06:51 PDT"]
[Termination "anon102030 won on time"]

1. d4 {[%clk 0:02:52.7]} 1... Nf6 {[%clk 0:02:59.3]} 2. c4 {[%clk 0:02:53]} 2...
e5 {[%clk 0:02:59]} 3. dxe5 {[%clk 0:02:53.1]} 3... Ng4 {[%clk 0:02:59.5]} 4.
Bf4 {[%clk 0:02:52.6]} 4... Nc6 {[%clk 0:02:59.4]} 5. Nf3 {[%clk 0:02:48.7]}
5... Bb4+ {[%clk 0:02:59.9]} 6. Nc3 {[%clk 0:02:48.4]} 6... Bxc3+ {[%clk
0:02:58.1]} 7. bxc3 {[%clk 0:02:48.6]} 7... Qe7 {[%clk 0:02:59]} 8. Qd5 {[%clk
0:02:49]} 8... Qa3 {[%clk 0:02:57]} 9. Qd2 {[%clk 0:02:34]} 9... Qe7 {[%clk
0:02:53]} 10. Qd5 {[%clk 0:01:54.1]} 10... Qa3 {[%clk 0:02:52.2]} 11. Rc1 {[%clk
0:01:40.3]} 11... f6 {[%clk 0:02:51]} 12. exf6 {[%clk 0:01:32.7]} 12... Nxf6
{[%clk 0:02:51.9]} 13. Qd2 {[%clk 0:01:32]} 13... d6 {[%clk 0:02:49.1]} 14. Qe3+
{[%clk 0:01:21.3]} 14... Kd8 {[%clk 0:02:38.8]} 15. Nd4 {[%clk 0:00:56.1]} 15...
Re8 {[%clk 0:02:31.9]} 16. Nxc6+ {[%clk 0:00:49.8]} 16... bxc6 {[%clk
0:02:32.8]} 17. Qd3 {[%clk 0:00:50]} 17... Rb8 {[%clk 0:01:52.7]} 18. g3 {[%clk
0:00:42.7]} 18... Rb2 {[%clk 0:01:25.2]} 19. e3 {[%clk 0:00:22.1]} 19... Ne4
{[%clk 0:00:56.1]} 20. Be2 {[%clk 0:00:21.1]} 20... h6 {[%clk 0:00:40.5]} 21.
O-O {[%clk 0:00:18.2]} 21... Rd2 {[%clk 0:00:40.5]} 22. Qb1 {[%clk 0:00:13.2]}
22... Rxe2 {[%clk 0:00:37.5]} 23. Rcd1 {[%clk 0:00:05.3]} 23... g5 {[%clk
0:00:27]} 24. Rd4 {[%clk 0:00:03.9]} 24... Bf5 {[%clk 0:00:22.6]} 0-1

[Event "*** Titled Tuesday Blitz"]
[Site "Chess.com"]
[Date "2021.04.06"]
[Round "11"]
[White "Godzillator"]
[Black "sergeikim"]
[Result "1-0"]
[WhiteElo "2343"]
[BlackElo "2522"]
[TimeControl "180+1"]
[EndTime "12:06:51 PDT"]
[Termination "Godzillator won by checkmate"]

1. d4 {[%clk 0:03:00.9]} 1... Nf6 {[%clk 0:02:58.8]} 2. c4 {[%clk 0:03:00.9]}
2... g6 {[%clk 0:02:58.6]} 3. Nc3 {[%clk 0:03:01.4]} 3... Bg7 {[%clk 0:02:58.7]}
4. e4 {[%clk 0:03:01.8]} 4... d6 {[%clk 0:02:58.6]} 5. Be2 {[%clk 0:03:02.5]}
5... O-O {[%clk 0:02:57.8]} 6. Bg5 {[%clk 0:03:03]} 6... Nbd7 {[%clk 0:02:56.7]}
7. Qc1 {[%clk 0:03:02.7]} 7... a6 {[%clk 0:02:54.1]} 8. a4 {[%clk 0:03:02.1]}
8... e5 {[%clk 0:02:50.8]} 9. d5 {[%clk 0:03:01.9]} 9... Nc5 {[%clk 0:02:49.3]}
10. Qc2 {[%clk 0:03:01]} 10... a5 {[%clk 0:02:43.1]} 11. f3 {[%clk 0:02:59.5]}
11... c6 {[%clk 0:02:40.3]} 12. Rd1 {[%clk 0:02:57.8]} 12... h6 {[%clk
0:02:33.8]} 13. Bh4 {[%clk 0:02:55.4]} 13... cxd5 {[%clk 0:02:19.2]} 14. Nxd5
{[%clk 0:02:54.6]} 14... Ne6 {[%clk 0:02:18.2]} 15. Bd3 {[%clk 0:02:48.1]} 15...
Nd4 {[%clk 0:02:12.7]} 16. Qd2 {[%clk 0:02:47.1]} 16... g5 {[%clk 0:02:01.1]}
17. Nxf6+ {[%clk 0:02:40.8]} 17... Qxf6 {[%clk 0:01:52.9]} 18. Bf2 {[%clk
0:02:41.7]} 18... Be6 {[%clk 0:01:52.3]} 19. Ne2 {[%clk 0:02:37.7]} 19... Nb3
{[%clk 0:01:38.4]} 20. Qc3 {[%clk 0:02:29.5]} 20... Nc5 {[%clk 0:01:36.5]} 21.
Bc2 {[%clk 0:02:29.4]} 21... Qe7 {[%clk 0:01:31.8]} 22. b3 {[%clk 0:02:28.7]}
22... Rfc8 {[%clk 0:01:27.4]} 23. Qd2 {[%clk 0:02:27.1]} 23... Bf8 {[%clk
0:01:20]} 24. Nc3 {[%clk 0:02:26.5]} 24... Na6 {[%clk 0:01:12]} 25. Nb5 {[%clk
0:02:14.7]} 25... Nb4 {[%clk 0:01:07.4]} 26. Bb1 {[%clk 0:02:14.5]} 26... Rc6
{[%clk 0:01:05.4]} 27. Be3 {[%clk 0:02:01.5]} 27... Qf6 {[%clk 0:01:04.5]} 28.
Rf1 {[%clk 0:01:51.2]} 28... Qg6 {[%clk 0:01:01.3]} 29. g4 {[%clk 0:01:49.6]}
29... Be7 {[%clk 0:00:55.6]} 30. Rh1 {[%clk 0:01:43.6]} 30... h5 {[%clk
0:00:52.2]} 31. gxh5 {[%clk 0:01:39.1]} 31... Qxh5 {[%clk 0:00:51.4]} 32. Qg2
{[%clk 0:01:39]} 32... Kh8 {[%clk 0:00:45.1]} 33. h4 {[%clk 0:01:37.4]} 33...
gxh4 {[%clk 0:00:43.6]} 34. Rg1 {[%clk 0:01:26.6]} 34... Qh7 {[%clk 0:00:33.8]}
35. f4 {[%clk 0:01:25]} 35... h3 {[%clk 0:00:27.7]} 36. Qf3 {[%clk 0:01:24.9]}
36... Qh4+ {[%clk 0:00:21.5]} 37. Ke2 {[%clk 0:01:17.3]} 37... h2 {[%clk
0:00:21.1]} 38. f5 {[%clk 0:01:08.9]} 38... hxg1=Q {[%clk 0:00:10.2]} 39. Rxg1
{[%clk 0:01:08.7]} 39... Qh2+ {[%clk 0:00:08.5]} 40. Rg2 {[%clk 0:01:06.5]}
40... Qh1 {[%clk 0:00:08.5]} 41. Rg8+ {[%clk 0:01:04.8]} 41... Rxg8 {[%clk
0:00:08.9]} 42. Qxh1+ {[%clk 0:01:04.9]} 42... Kg7 {[%clk 0:00:06]} 43. Qh6#
{[%clk 0:01:04.9]} 1-0

[Event "*** Titled Tuesday Blitz"]
[Site "Chess.com"]
[Date "2021.04.06"]
[Round "11"]
[White "C_K_G"]
[Black "kikydu96"]
[Result "0-1"]
[WhiteElo "2089"]
[BlackElo "2450"]
[TimeControl "180+1"]
[EndTime "12:06:55 PDT"]
[Termination "kikydu96 won by checkmate"]

1. e4 {[%clk 0:03:00.9]} 1... c5 {[%clk 0:02:55.3]} 2. Nf3 {[%clk 0:03:00.8]}
2... d6 {[%clk 0:02:54.5]} 3. c3 {[%clk 0:03:00.8]} 3... Nf6 {[%clk 0:02:53.7]}
4. Bd3 {[%clk 0:03:01]} 4... Bg4 {[%clk 0:02:44]} 5. Bc2 {[%clk 0:03:01.9]} 5...
Nc6 {[%clk 0:02:44.1]} 6. h3 {[%clk 0:02:55.9]} 6... Bh5 {[%clk 0:02:43.3]} 7.
g4 {[%clk 0:02:53.9]} 7... Bg6 {[%clk 0:02:43.1]} 8. d3 {[%clk 0:02:53.3]} 8...
e6 {[%clk 0:02:41.6]} 9. Rg1 {[%clk 0:02:52]} 9... Be7 {[%clk 0:02:37.4]} 10. h4
{[%clk 0:02:50.8]} 10... h5 {[%clk 0:02:31.2]} 11. g5 {[%clk 0:02:45.1]} 11...
Ng4 {[%clk 0:02:29.8]} 12. Bf4 {[%clk 0:02:40.7]} 12... O-O {[%clk 0:02:26.1]}
13. Nbd2 {[%clk 0:02:39.1]} 13... d5 {[%clk 0:02:23]} 14. e5 {[%clk 0:02:29.8]}
14... Qc7 {[%clk 0:02:13.2]} 15. Qe2 {[%clk 0:02:24.1]} 15... c4 {[%clk
0:02:07.6]} 16. Rd1 {[%clk 0:02:05.8]} 16... cxd3 {[%clk 0:02:06.7]} 17. Bxd3
{[%clk 0:02:05.4]} 17... Bxd3 {[%clk 0:02:05.4]} 18. Qxd3 {[%clk 0:02:05.8]}
18... Ncxe5 {[%clk 0:02:03.8]} 19. Nxe5 {[%clk 0:02:04.3]} 19... Nxe5 {[%clk
0:02:04.5]} 20. Qg3 {[%clk 0:01:52.4]} 20... Nd3+ {[%clk 0:02:03]} 21. Qxd3
{[%clk 0:01:51.8]} 21... Qxf4 {[%clk 0:02:03.6]} 22. Qg3 {[%clk 0:01:46.7]}
22... Qxg3 {[%clk 0:01:58.9]} 23. fxg3 {[%clk 0:01:47.6]} 23... b5 {[%clk
0:01:50.3]} 24. g4 {[%clk 0:01:47.4]} 24... hxg4 {[%clk 0:01:48]} 25. Rxg4
{[%clk 0:01:48.3]} 25... Rab8 {[%clk 0:01:43.6]} 26. Ke2 {[%clk 0:01:47]} 26...
b4 {[%clk 0:01:43.9]} 27. cxb4 {[%clk 0:01:44.3]} 27... Rxb4 {[%clk 0:01:43]}
28. Rxb4 {[%clk 0:01:41.8]} 28... Bxb4 {[%clk 0:01:43.9]} 29. Nf3 {[%clk
0:01:40.9]} 29... Rc8 {[%clk 0:01:41.2]} 30. Kd3 {[%clk 0:01:37.1]} 30... Rc4
{[%clk 0:01:35.6]} 31. h5 {[%clk 0:01:30.7]} 31... Bd6 {[%clk 0:01:32.5]} 32. g6
{[%clk 0:01:29.8]} 32... fxg6 {[%clk 0:01:30.6]} 33. hxg6 {[%clk 0:01:30.7]}
33... Rg4 {[%clk 0:01:26.9]} 34. Re1 {[%clk 0:01:25.8]} 34... Rxg6 {[%clk
0:01:26.2]} 35. Nd4 {[%clk 0:01:24]} 35... Kf7 {[%clk 0:01:13.9]} 36. Rf1+
{[%clk 0:01:18.7]} 36... Ke7 {[%clk 0:01:12.8]} 37. Nc6+ {[%clk 0:01:18.3]}
37... Kd7 {[%clk 0:01:12.2]} 38. Nxa7 {[%clk 0:01:18.3]} 38... Rg3+ {[%clk
0:01:11.7]} 39. Kc2 {[%clk 0:01:17]} 39... Be5 {[%clk 0:01:08.5]} 40. Rf2 {[%clk
0:01:13.4]} 40... g5 {[%clk 0:01:07.2]} 41. Nb5 {[%clk 0:01:09.9]} 41... g4
{[%clk 0:01:07.2]} 42. a4 {[%clk 0:01:03.2]} 42... Rh3 {[%clk 0:00:59.1]} 43. a5
{[%clk 0:00:56.9]} 43... g3 {[%clk 0:00:59.3]} 44. Rf7+ {[%clk 0:00:55.3]} 44...
Kc6 {[%clk 0:00:57.8]} 45. Na7+ {[%clk 0:00:52.7]} 45... Kc5 {[%clk 0:00:55]}
46. Nc8 {[%clk 0:00:45.4]} 46... g2 {[%clk 0:00:52.9]} 47. a6 {[%clk 0:00:29.9]}
47... g1=Q {[%clk 0:00:51.9]} 48. a7 {[%clk 0:00:29.5]} 48... Qg2+ {[%clk
0:00:50.9]} 49. Kb1 {[%clk 0:00:27.9]} 49... Qxb2# {[%clk 0:00:50.3]} 0-1